Cogmind - Beta 13 @@@ ROGUE MODE // 2024.03.31 @ 20:36:17 Player: Prince Result: Destroyed by S-10 Pest with Light Assault Rifle Performance ------------- Evolutions (1) 500 Regions Visited (4) 800 Robots Destroyed (27) 135 Value Destroyed (741) 741 Prototype IDs (1) 20 Alien Tech Used (0) 0 Bonus (83) 83 TOTAL SCORE: 2279 Bonus ------- Entered Garrisons 200 Friendly Fire -117 Cogmind --------- Core Integrity 0/400 Matter 300/300 Energy 292/300 System Corruption 3% Temperature Cool (0) Movement Walking (120) Location -9/Garrison Parts ------- > --- POWER (1) -------- (None) > --- PROPULSION (3) --- Aluminum Leg Aluminum Leg Aluminum Leg > --- UTILITY (3) ------ Improved Heat Sink Large Battery Structural Scanner > --- WEAPON (2) ------- Particle Gun > --- INVENTORY (5) ---- Aluminum Leg Aluminum Leg High-capacity Storage Unit Medium Matter Pod (100) Small Laser Peak State ------------ > --- POWER ------------ Ion Engine > --- PROPULSION ------- Aluminum Leg Aluminum Leg > --- UTILITY ---------- Large Battery Drone Bay Drone Bay > --- WEAPON ----------- Particle Gun Particle Gun > --- INVENTORY -------- High-capacity Storage Unit Medium Matter Pod Structural Scanner [Rating: 18] Favorites ----------- Power Ion Engine Engine Ion Engine Propulsion Aluminum Leg Leg Aluminum Leg Wheel Wheel Hover Unit Hover Unit Flight Unit Flight Unit Utility Drone Bay Device Drone Bay Storage Large Battery Protection Hardened Medium Armor Plating Weapon Particle Gun Energy Gun Particle Gun Ballistic Gun Enhanced Autogun Launcher Grenade Launcher Special Weapon Mining Laser Build | -11 -10 -9 -9 -9 ------- Run | Yrd Mat Mat Sto Gar Slots Evolved 2 | . . 2 . . Power . | . . . . . Propulsion 1 | . . 1 . . Utility 1 | . . 1 . . Weapon . | . . . . . Parts Attached 46 | 7 16 9 7 7 Power 5 | 1 1 2 . 1 Engine 5 | 1 1 2 . 1 Core . | . . . . . Reactor . | . . . . . Propulsion 16 | 4 4 3 1 4 Treads . | . . . . . Leg 11 | 2 2 2 1 4 Wheel 3 | 2 1 . . . Hover 1 | . . 1 . . Flight 1 | . 1 . . . Utility 12 | . 2 3 5 2 Device 8 | . 1 2 3 2 Storage 3 | . 1 . 2 . Processor . | . . . . . Hackware . | . . . . . Protection 1 | . . 1 . . Artifact . | . . . . . Weapon 13 | 2 9 1 1 . Energy Gun 7 | 2 4 . 1 . Energy Cannon . | . . . . . Ballistic Gun 1 | . . 1 . . Ballistic Cannon . | . . . . . Launcher 3 | . 3 . . . Special Weapon 2 | . 2 . . . Impact Weapon . | . . . . . Slashing Weapon . | . . . . . Piercing Weapon . | . . . . . Special Melee Weapon . | . . . . . Unidentified Prototypes 1 | . . 1 . . Corrupted Parts 1 | . 1 . . . System Corruption 1 | . 1 . . . Parts Lost 13 | . 3 6 . 4 Power 2 | . . 1 . 1 Propulsion 4 | . 1 3 . . Utility 4 | . . 2 . 2 Weapon 3 | . 2 . . 1 Highest Loss Streak 6 | . 2 6 . 2 To Critical Strikes . | . . . . . Average Slot Usage (%) 74 | . 80 59 69 86 Engine 11 | . 14 8 11 10 Leg 14 | . 12 2 14 28 Wheel 3 | . 10 . . . Hover 1 | . . 8 . . Flight 1 | . . 8 . . Device 15 | . 10 11 19 18 Storage 8 | . 9 . 9 11 Protection 1 | . . 8 . . Energy Gun 14 | . 14 11 14 17 Launcher 2 | . 7 . . . Naked Turns . | . . . . . Heaviest Build 52 | 7 52 17 23 21 Greatest Support 30 | 20 20 10 20 30 Greatest Overweight (x) 5 | . 5 2 2 1 Average Overweight (x) 1 | . 1 1 . . Largest Inventory Capacity 20 | 5 20 5 20 5 Average Capacity 7 | 5 15 5 5 5 Most Carried 9 | 5 9 5 5 5 Average Carried 4 | 3 6 4 3 3 Final Capacity 5 | 5 5 5 5 5 Final Carried 5 | 5 5 4 3 5 Class Distribution -------------------- 51% | Scavenger-Mutant 48% | Mutant Dominant Class ---------------- Mutant | -10/Materials Scavenger-Mutant | -9/Materials Mutant | -9/Storage Scavenger-Mutant | -9/Garrison Resources | -11 -10 -9 -9 -9 ----------- Run | Yrd Mat Mat Sto Gar Matter Collected 841 | 270 107 68 316 80 Remotely . | . . . . . Salvage Created 959 | 50 151 206 234 318 Parts 54 | 2 19 11 6 16 Haulers Intercepted 1 | . 1 . . . Recyclers Shooed . | . . . . . Parts Field Recycled . | . . . . . Retrieved Matter . | . . . . . Parts Self-Destructed . | . . . . . Prevented . | . . . . . Kills | -11 -10 -9 -9 -9 ------- Run | Yrd Mat Mat Sto Gar Combat Hostiles Destroyed 21 | 1 5 4 5 6 Guns 18 | 1 3 4 5 5 AOE 2 | . 2 . . . Classes Destroyed 8 | 1 4 2 1 . Worker 2 | . 1 . 1 . Hauler 1 | . 1 . . . Recycler 1 | . . 1 . . Drone 1 | . . . 1 . Watcher 2 | . 2 . . . Swarmer 4 | . 3 . . 1 Grunt 15 | 1 2 3 4 5 Sentry 2 | . . 1 1 . Best Kill Streak 4 | 1 3 4 3 3 Combat Bots Only 3 | 1 3 3 3 3 Max Kills in Single Turn 2 | 1 2 1 1 1 Gunslinging . | . . . . . Exploded 2 | . 2 . . . Melee . | . . . . . Uniques/NPCs Destroyed . | . . . . . Combat | -11 -10 -9 -9 -9 -------- Run | Yrd Mat Mat Sto Gar Hostile Shots Fired 185 | 2 28 57 24 74 Missed 32 | 1 7 8 . 16 Damage Taken 1875 | 12 375 574 304 610 Core 445 | . 44 192 55 154 Absorbed by Shields . | . . . . . Core Remaining (%) 91 | 100 82 . . . Volleys Fired 116 | 1 21 31 31 32 Largest 2 | 2 2 1 2 2 Hottest 130 | 80 80 65 130 130 Shots Fired 137 | 2 27 31 35 42 Gun 127 | 2 17 31 35 42 Cannon . | . . . . . Launcher 10 | . 10 . . . Special . | . . . . . Kinetic . | . . . . . Thermal 108 | . . 31 35 42 Explosive 10 | . 10 . . . Electromagnetic 19 | 2 17 . . . Robot Hit Streak 12 | 2 3 5 8 12 Robot Miss Streak 3 | . 3 3 3 3 Penetration Max . | . . . . . Secondary Targets . | . . . . . Shots Hit Robots 85 | 2 13 17 25 28 Core Hits 45 | 1 13 7 9 15 Critical Kills . | . . . . . Critical Parts Destroyed . | . . . . . Critical Strikes 4 | . . 1 1 2 Burn 4 | . . 1 1 2 Melee Attacks . | . . . . . Impact . | . . . . . Slashing . | . . . . . Piercing . | . . . . . Sneak Attacks . | . . . . . Combat Hostiles . | . . . . . Follow-up Attacks . | . . . . . Damage Inflicted 1722 | 30 555 304 393 440 Guns 1287 | 30 121 304 393 439 Cannons . | . . . . . Explosions 434 | . 434 . . . Melee . | . . . . . Ramming 1 | . . . . 1 Kinetic . | . . . . . Thermal 1136 | . . 304 393 439 Explosive 434 | . 434 . . . Electromagnetic 151 | 30 121 . . . Impact . | . . . . . Slashing . | . . . . . Piercing . | . . . . . Highest Corruption 3 | . 1 3 3 3 Average Corruption 2 | . 1 3 3 3 Corruption Purged . | . . . . . Corruption Blocked . | . . . . . Effects 21 | . 4 6 7 4 Message Errors 7 | . . 3 4 . Matter Fused 4 | . 2 . 2 . Heat Flow Errors 2 | . 1 1 . . Energy Discharges 4 | . 1 1 . 2 Data Loss (major) 1 | . . . . 1 Misfires 2 | . . . 1 1 Alerts 1 | . . 1 . . Overload Shots . | . . . . . Overflow Damage 13 | . 13 . . . Projectiles . | . . . . . Explosions 13 | . 13 . . . Melee . | . . . . . Knockbacks . | . . . . . Impact . | . . . . . Kinetic . | . . . . . Secondary . | . . . . . Self-Inflicted Damage 135 | . 135 . . . Shots 4 | . 4 . . . Rammed . | . . . . . Targets Rammed 1 | . . . . 1 Kicked 1 | . . . . 1 Crushed . | . . . . . Highest Temperature 497 | 18 254 219 186 497 Average Temperature 133 | 12 105 93 78 215 Received Heat Transfer 777 | 6 99 297 168 207 Effects 3 | . . . . 3 Shutdowns 1 | . . . . 1 Interference 2 | . . . . 2 Siege Activations . | . . . . . Robots Corrupted . | . . . . . Combat Hostiles . | . . . . . Parts Fried . | . . . . . Impact Corruptions . | . . . . . Robots Melted 1 | . . . . 1 Combat Hostiles 1 | . . . . 1 Parts Melted 5 | . . 2 1 2 Heat Transferred 2997 | . . 814 999 1184 Parts Sabotaged . | . . . . . Parts Stolen . | . . . . . Parts Stripped . | . . . . . Power Chain Reactions . | . . . . . Alert | -11 -10 -9 -9 -9 ------- Run | Yrd Mat Mat Sto Gar Peak Influence 232 | 20 232 167 106 115 Initial 97 | . 13 97 70 5 Average 93 | 3 140 113 74 64 Maximum Alert Level 1 | . 1 . . . Low Security (%) 88 | 100 58 100 100 100 Level 1 11 | . 41 . . . Level 2 . | . . . . . Level 3 . | . . . . . Level 4 . | . . . . . Level 5 . | . . . . . High Security . | . . . . . Max Security . | . . . . . Squads Dispatched 4 | . . 3 1 . Investigation . | . . . . . Extermination . | . . . . . Reinforcement 4 | . . 3 1 . Assault . | . . . . . Garrison . | . . . . . Intercept . | . . . . . Searches Triggered . | . . . . . Construction Impeded . | . . . . . Haulers Reinforced . | . . . . . Active Scanning Responses . | . . . . . Cargo Convoy Interrupts . | . . . . . Stealth | -11 -10 -9 -9 -9 --------- Run | Yrd Mat Mat Sto Gar Distress Signals 2 | . 1 . 1 . Communications Jammed . | . . . . . Distress Signals . | . . . . . Times Spotted 37 | 1 9 11 7 9 Peak Tracking Total 4 | 1 4 4 3 4 Tactical Retreats . | . . . . . Traps | -11 -10 -9 -9 -9 ------- Run | Yrd Mat Mat Sto Gar Traps Triggered 1 | . . . . 1 Indirectly . | . . . . . Trap Hack Attempts . | . . . . . Triggered . | . . . . . Disarmed . | . . . . . Reprogrammed . | . . . . . Reused . | . . . . . Traps Extracted . | . . . . . Installed . | . . . . . Triggered . | . . . . . Machines | -11 -10 -9 -9 -9 ---------- Run | Yrd Mat Mat Sto Gar Machines Disabled 2 | . 2 . . . Max in Single Turn 1 | . 1 . . . Machines Repaired . | . . . . . Machines Dismantled . | . . . . . Machines Sabotaged . | . . . . . Overloaded Fab Kills . | . . . . . Hacking | -11 -10 -9 -9 -9 --------- Run | Yrd Mat Mat Sto Gar Machines Accessed 8 | . 2 2 3 1 Terminals 5 | . 2 . 2 1 Fabricators . | . . . . . Repair Stations . | . . . . . Recycling Units 1 | . . 1 . . Scanalyzers 1 | . . 1 . . Garrison Access 1 | . . . 1 . Total Hacks 16 | . 5 3 6 2 Successful 8 | . 3 2 3 . Failed 8 | . 2 1 3 2 Catastrophic 2 | . . . 1 1 Database Lockouts . | . . . . . Manual . | . . . . . Terminals 11 | . 5 . 4 2 Fabricators . | . . . . . Repair Stations . | . . . . . Recycling Units 2 | . . 2 . . Scanalyzers 1 | . . 1 . . Garrison Access 2 | . . . 2 . Terminal Hacks 5 | . 3 . 2 . Record 1 | . 1 . . . Open Door 1 | . . . 1 . Alert Level 1 | . 1 . . . Hauler Manifests 2 | . 1 . 1 . Fabricator Hacks . | . . . . . Repair Station Hacks . | . . . . . Recycling Unit Hacks 2 | . . 2 . . Report Inventory 1 | . . 1 . . Retrieve Components 1 | . . 1 . . Scanalyzer . | . . . . . Garrison Access Hacks 1 | . . . 1 . Unlock Access 1 | . . . 1 . Unauthorized Hacks . | . . . . . Terminals . | . . . . . Fabricators . | . . . . . Repair Stations . | . . . . . Recycling Units . | . . . . . Scanalyzers . | . . . . . Garrison Access . | . . . . . Data Cores Recovered . | . . . . . Used . | . . . . . Hacking Detections 5 | . 2 1 2 . Full Trace Events 2 | . 1 . 1 . Feedback Events . | . . . . . Feedback Blocked . | . . . . . Robot Schematics Acquired . | . . . . . Robots Built . | . . . . . Authchips . | . . . . . Time . | . . . . . Total Robot Build Rating . | . . . . . Part Schematics Acquired . | . . . . . Parts Built . | . . . . . Authchips . | . . . . . Time . | . . . . . Total Part Build Rating . | . . . . . Parts Repaired . | . . . . . Time . | . . . . . Parts Recycled . | . . . . . Recycled Matter . | . . . . . Retrieved Matter . | . . . . . Retrieved Components 3 | . . 3 . . Parts Scanalyzed . | . . . . . Part Schematics Acquired . | . . . . . Parts Damaged . | . . . . . Bothacking | -11 -10 -9 -9 -9 ------------ Run | Yrd Mat Mat Sto Gar Used RIF Installer . | . . . . . Robots Hacked . | . . . . . Non-combat . | . . . . . Combat . | . . . . . Robot Hacks Applied . | . . . . . Relay Couplers Released . | . . . . . Fabnet Peak Effective % . | . . . . . Robots Rewired . | . . . . . Allies Hacked . | . . . . . Hacks Repelled . | . . . . . Allies | -11 -10 -9 -9 -9 -------- Run | Yrd Mat Mat Sto Gar Total Allies . | . . . . . Largest Group . | . . . . . Highest-Rated Group . | . . . . . Highest-Rated Ally . | . . . . . Total Orders . | . . . . . Ally Attacks . | . . . . . Total Damage . | . . . . . Kills . | . . . . . Allies Corrupted . | . . . . . Allies Melted . | . . . . . Intel | -11 -10 -9 -9 -9 ------- Run | Yrd Mat Mat Sto Gar Robot Analysis Total . | . . . . . Derelict Logs Recovered . | . . . . . Drone Launches 16 | . . . 16 . Drone Recoveries 4 | . . . 4 . Exploration | -11 -10 -9 -9 -9 ------------- Run | Yrd Mat Mat Sto Gar Turns Passed 1488 | 80 399 269 467 273 Spaces Moved 679 | 80 209 110 173 107 Core 31 | 26 . 5 . . Treads . | . . . . . Legs 366 | 8 55 23 173 107 Wheels 189 | 46 143 . . . Hover 82 | . . 82 . . Flight 11 | . 11 . . . Fastest Speed 50 | 50 80 100 120 120 Average Speed 150 | 74 144 163 185 147 Slowest Speed 260 | 120 260 190 260 190 Overloaded Moves . | . . . . . Propulsion Burnouts . | . . . . . Robots Hopped . | . . . . . Cave-ins Triggered . | . . . . . Exploration Rate (%) 21 | 6 47 14 24 16 Regions Visited 4 Branch Regions 1 Pre-discovered Areas . | . . . . . Known Exits Taken 1 | . . . 1 . Unknown Exits Taken 3 | 1 1 1 . . Scrap Searched . | . . . . . Spaces Dug . | . . . . . Terrain Destroyed 28 | . 28 . . . Melee . | . . . . . Projectile . | . . . . . AOE 28 | . 28 . . . Terrain Rammed . | . . . . . Walls Destroyed . | . . . . . Machines Disabled . | . . . . . Actions | -11 -10 -9 -9 -9 --------- Run | Yrd Mat Mat Sto Gar Total 1008 | 97 278 166 286 181 Wait 94 | . 10 13 62 9 Move 676 | 79 208 109 173 107 Hop . | . . . . . Pick Up 34 | 10 10 3 4 7 Fast Attach 9 | . 5 4 . . Attach 24 | 5 5 4 7 3 Detach 4 | . 2 . 2 . Swap 13 | 2 6 1 . 4 Drop 16 | . 11 1 1 3 Fire 116 | 1 21 31 31 32 Melee . | . . . . . Ram . | . . . . . Kick 1 | . . . . 1 Crush . | . . . . . Escape Stasis 5 | . . . . 5 Rewire 10 | . . . . 10 Trap . | . . . . . Miscellaneous 6 | . . . 6 . Route ------- -11/Scrapyard -10/Materials (discovered 2 exits: *Mat / [*Min]) -9/Materials -9/Storage -9/Garrison History --------- Turn | Location | Event 2 | -11/Scrapyard | Met Revision 17 60 | -11/Scrapyard | Discovered new exit (range 8) 81 | -11/Scrapyard | Entered Materials 206 | -10/Materials | Discovered new exit (range 7) 302 | -10/Materials | Build established: Mutant 465 | -10/Materials | Discovered new exit (range 5) 480 | -10/Materials | Entered another Materials area 480 | -9/Materials | Evolved 2 slots: Propulsion x1, Utility x1 732 | -9/Materials | Discovered new exit (range 12) 745 | -9/Materials | Lost 6 parts (1p3n2u) 749 | -9/Materials | Entered Storage 912 | -9/Storage | Core integrity fell below 50% 930 | -9/Storage | Lost 4 allies 1013 | -9/Storage | Lost 7 allies 1216 | -9/Storage | Identified exit to Garrison 1216 | -9/Storage | Entered Garrison 1216 | -9/Garrison | Accompanied by 1 ally 1280 | -9/Garrison | Triggered checkpoint 1355 | -9/Garrison | Build established: Scavenger-Mutant 1362 | -9/Garrison | Triggered checkpoint 1380 | -9/Garrison | Core integrity fell below 20% 1468 | -9/Garrison | Triggered checkpoint 1489 | -9/Garrison | Destroyed by S-10 Pest with Light Assault Rifle Last Messages --------------- G-47 Trooper destroyed. Acquired Aluminum Leg. Acquired Imp. Heat Sink. Dropped Aluminum Leg. C-30 ARC suffers critical hit (Burn). Arm. Wheel melted. C-30 ARC destroyed. Acquired 10 matter. Acquired Aluminum Leg. Beams of light sweep through the air. An alarm sounds. S-10 Pest suffers critical hit (Burn). System corrupted: Substantial component data lost. Ion Engine destroyed. S-10 Pest destroyed. Kicked S-10 Pest out of the way. Ramming works as a last resort when unarmed or blocked, but can have serious negative consequences. Map ----- +----------------------------------------------------+ | ?????????????????????????????????????????????????? | | ????#####????????????????????????????????????????? | | ????# #????????????????????????????????????????? | | ????# #############????????????????????????????? | | ????# #????????????????????????????? | | ????# #????????????????????????????? | | ????############## #????????????????????????????? | | ?????????????##### #????????????????????????????? | | ?????????????#"T"# #????????????????????????????? | | ?????????????#" #????????????????????????????? | | ?????????????##### #????????????????????????????? | | ?????????????????# #????????????????????????????? | | ################## #######??##??????????????????? | | # !=%!! ^^^^ #??????????????????? | | # ### %*########## #??????????????????? | | # #?# *=#????????# ######## #??????????????????? | | # #?#####????????# #???????? #??????????????????? | | # #??????????????# #??????? #??????????????????? | | #??????????????# #??????? #??????????????????? | | #??????????????# #??????? #??????????????????? | | ^#??????????????# #??????? #??????????????????? | | # #??????????????# #??????? #??????????????????? | | # #?#####????????# #?????## ##""""## #???????? | | # #?# %#????????# ####### #???????? | | # ### %########## =%s #???????? | | # % % @*s #???????? | | ########################### s ## ^ ^#????????????? | | ??????????????????????????# #??????????????????? | | ?????????????????????????? ?????????????????? | | ?????????????????????????? ???????????????? | | ?????????????????????????? ??????????????? | | ?????????????????????????? ????????????? | | ?????????????????????????## ## ##???????????? | | ??????????????????????????# #? #????????????? | | ??????????????????????????? ?? ???????????? | | ??????????????????????????? ?? ???????????? | | ??????????????????????????? ??? ??????????? | | ???????????????????????????#####???"#????????????? | | ?????????????????????????????????????????????????? | | ?????????????????????????????????????????????????? | | ?????????????????????????????????????????????????? | | ?????????????????????????????????????????????????? | | ?????????????????????????????????????????????????? | | ?????????????????????????????????????????????????? | | ?????????????????????????????????????????????????? | | ?????????????????????????????????????????????????? | | ?????????????????????????????????????????????????? | | ?????????????????????????????????????????????????? | | ?????????????????????????????????????????????????? | | ?????????????????????????????????????????????????? | +----------------------------------------------------+ Best States ------------- Heat Dissipation 48 Energy Generation 14 Energy Capacity 450 Matter Stores 300 Matter Capacity 300 Sight Range 16 Terrain Scan Density 10 Armor Coverage 225 Evasion (%) 55 Item Schematics ----------------- None Robot Schematics ------------------ None Fabricated ------------ Nothing Alien Tech Used ----------------- None Achievements -------------- Backstab Let's See Who's Tougher Loot Pinata Release The Drones! Shopping List Challenges ------------ None Game ------ Seed SniperLightpackSplitter Manual? 0 Play Time 00:22:23 Cumulative 0.6 hours Start 2024.03.31 @ 20:16:41 End 2024.03.31 @ 20:36:17 Sessions 1 Manual Loads 0 Difficulty Rogue Special Mode None Game No. 2 Rogue 2 Adventurer 0 Explorer 0 Win Type - Total 0 Types 0/0/0/0/0/0/0/0/0 Lore% 0 Gallery% 3 Achievement% 5 Wizard Run 0 Options --------- Layout 1 ASCII 0 Keyboard 0 Movement Mouse Keybinds 0 Fullscreen 2 Font 32/SmallcapsGlow Map View 50x35 Zoom Use 0% Tactical HUD 0 Map Filters NONE Filters NONE Steam 1 RUN: 56c382be-07f8-483e-990e-8552203326b5